[Event "SixDays Budapest March IM A 2025"]
[Site "Budapest"]
[Date "2025.03.27"]
[Round "6.5"]
[White "Li, Yilin"]
[Black "Singh, Siddharth"]
[Result "1/2-1/2"]
[Annotator "TA"]
[ECO "B30"]
[WhiteElo "1904"]
[BlackElo "2239"]
[PlyCount "72"]
[EventDate "2025.03.23"]
[EventType "tourn"]
[EventCountry "HUN"]
[SourceTitle "playchess.com"]
[Source "ChessBase"]
[SourceQuality "1"]
[TimeControl "5400+30"]

{[%evp 9,72,6,3,-1,0,-7,20,6,8,-1,-5,-2,0,0,-14,-24,69,61,100,110,97,132,216,180,196,203,197,175,154,71,76,0,0,0,8,8,8,8,8,2,2,7,15,15,15,15,15,18,18,14,25,14,26,0,0,0,0,0,0,0,0,0,0,0,0]} 1. e4 {[%emt 0:15:23]} c5 {[%emt 0:00:05]} 2. Nf3 {[%emt 0:00:07]} Nc6 {[%emt 0:00:03]} 3. Bb5 {[%emt 0:00:05]} e5 {[%emt 0:01:06]} 4. Bxc6 {[%emt 0:00:47]} dxc6 {[%emt 0:00:05]} 5. d3 {[%emt 0:00:55]} Bd6 {[%emt 0:00:20]} 6. a4 {[%emt 0:06:07] B30: Sicilian: 2...Nc6 3 Bb5, lines without ...g6.} a5 {[%emt 0:00:39]} 7. Nbd2 {[%emt 0:04:00]} f6 {[%emt 0:00:08]} 8. Nc4 {[%emt 0:00:52]} Bc7 {[%emt 0:00:06]} 9. Nh4 $146 {[%emt 0:08:25]} ({Predecessor:} 9. b3 Ne7 10. Ba3 b6 11. Nh4 Be6 12. Ne3 Qd7 13. h3 O-O-O 14. Qf3 g5 15. Nhf5 Nxf5 16. Nxf5 Bxf5 17. Qxf5 Qxf5 18. exf5 {0-1 Kleibel,U (2302)-Iljin,T (2285) Titled Tuesday intern op 16th Jan Early blitz 2024 (11)}) 9... Ne7 {[%emt 0:05:05]} 10. Qh5+ {[%emt 0:01:44]} g6 {[%emt 0:00:07]} 11. Qh6 {[%emt 0:00:05]} Kf7 {[%emt 0:00:03] Repels Qg7+} 12. O-O {[%emt 0:09:42]} (12. Nf3 {simplifies} b5 13. Ne3 Qf8 14. Qxf8+ Rxf8 15. h3) 12... g5 {[%emt 0:04:25]} (12... b5 $11 13. Na3 g5) 13. Nf3 $14 {[%emt 0:11:45][%cal Oc4e5]} Ng6 {[%emt 0:01:13]} 14. h4 {[%emt 0:07:03] White has more active pieces.} gxh4 {[%emt 0:23:18] A sharp opening} 15. Nxh4 {[%emt 0:02:36] A dynamic duo of knights.} Rg8 {[%emt 0:00:21]} (15... Nxh4 $16 {might work better.} 16. Qxh4 h5) 16. Qxh7+ {[%emt 0:08:41]} Rg7 {[%emt 0:00:06]} 17. Qh5 {[%emt 0:00:19] Threatens to win with Nf5.} Qh8 {[%emt 0:07:21]} 18. Qxh8 {[%emt 0:05:50]} Nxh8 {[%emt 0:00:02]} 19. Ne3 {[%emt 0:02:20]} (19. Nf5 $142) 19... Ng6 {[%emt 0:00:46]} 20. Nef5 {[%emt 0:01:23]} (20. Nhf5 $16 Bxf5 21. Nxf5) 20... Nxh4 $1 $11 {[%emt 0:00:09]} 21. Nxh4 {[%emt 0:00:30]} Bh3 {[%emt 0:00:46] [#] ...Rh8 is the strong threat.} 22. Re1 {[%emt 0:05:10]} Rh8 {[%emt 0:03:16]} 23. Kf1 $1 {[%emt 0:01:23][%cal Bg1f1,Bf1e2,Be2f3][%mdl 32]} Rxh4 {[%emt 0:00:05]} 24. gxh3 Rxh3 {[%emt 0:00:03]} 25. Be3 {[%emt 0:00:21]} b6 {[%emt 0:00:04]} 26. Ke2 {[%emt 0:00:29]} Rh4 {[%emt 0:01:09]} 27. Rh1 {[%emt 0:00:18]} Rgh7 {[%emt 0:00:12]} 28. Rxh4 {[%emt 0:00:45]} Rxh4 {[%emt 0:00:02][%mdl 4096] Endgame KRB-KRB} 29. b3 {[%emt 0:00:17]} Bd6 {[%emt 0:00:20]} 30. Kf3 {[%emt 0:00:28]} Bf8 {[%emt 0:00:15]} 31. Bd2 {[%emt 0:01:11]} Bh6 {[%emt 0:00:17] The position is equal.} 32. Bc3 {[%emt 0:01:30]} Bg5 {[%emt 0:00:47]} 33. Kg2 {[%emt 0:00:31]} Rg4+ {[%emt 0:01:30]} 34. Kf3 {[%emt 0:00:07]} Rf4+ {[%emt 0:00:07]} 35. Kg2 {[%emt 0:00:17]} Rg4+ {[%emt 0:02:07]} 36. Kf3 {[%emt 0:00:05]} Rf4+ {[%emt 0:00:06] Weighted Error Value: White=0.11 (very precise) /Black=0.15 (very precise)   Mistake:       	White=2     	Black=2      Inaccurate:     	White=1     	Black=2      OK:         	White=10    	Black=14     Best:        	White=1     	Black=1      Strong:       	White=1     	Black=1} 1/2-1/2